bitfinex/quotes_SOLUSD_20250621
["timestamp","ask_amount","ask_price","bid_price","bid_amount"]
[1750535413229,9.18397409,137.97,137.93,31.93496883]
[1750535414126,192.64964886,137.99,137.93,41.79894292]
[1750535414324,9.18397409,137.98,137.93,41.79894292]
[1750535414903,9.18397409,137.98,137.94,9.18397409]
[1750535415119,9.18397409,137.98,137.93,41.11894292]
[1750535415323,9.18397409,137.97,137.93,41.11894292]
[1750535416112,9.18397409,137.98,137.95,25.37151141]
[1750535416325,157.18397409,137.99,137.95,25.37151141]
[1750535416514,148.0,137.99,137.97,9.18397409]
[1750535416714,9.18397409,138.01,137.97,9.86397409]
[1750535417334,9.92397409,138.02,137.97,9.86397409]
[1750535417833,9.18397409,138.01,137.97,9.86397409]
[1750535418014,9.18397409,138.01,137.97,9.18397409]
[1750535418211,0.74,138.02,137.98,7.24742716]
[1750535418412,9.18397409,138.01,137.98,7.24742716]
[1750535418933,9.18397409,138.01,137.98,25.36599506]
[1750535420216,9.92397409,138.0,137.98,18.1185679]
[1750535422028,9.92397409,137.99,137.97,7.24795245]
[1750535422218,9.18397409,137.99,137.96,18.12101327]
[1750535422623,9.18397409,138.0,137.96,18.12101327]
[1750535424341,9.18397409,138.01,137.96,34.55346517]
[1750535424513,9.18397409,138.01,137.97,9.86397409]
[1750535424913,148.0,138.02,137.97,9.86397409]
[1750535425122,157.18397409,138.02,137.97,9.86397409]
[1750535426436,9.18397409,138.03,137.99,9.86397409]
[1750535426625,9.18397409,138.04,138.0,9.86397409]
[1750535426945,148.0,138.05,138.02,9.18397409]
[1750535427136,148.0,138.05,138.03,9.18397409]
[1750535427314,32.63777622,138.08,138.03,9.18397409]
[1750535427518,9.18397409,138.07,138.03,9.86397409]
[1750535428230,9.18397409,138.07,138.03,9.18397409]
[1750535428426,9.18397409,138.07,138.04,7.24427702]
[1750535428613,9.90397409,138.07,138.04,7.24427702]
[1750535428817,30.26927622,138.08,138.04,7.24427702]
[1750535428818,9.90397409,138.06,138.04,7.24427702]
[1750535429851,9.18397409,138.06,138.04,7.24427702]
[1750535430046,9.90397409,138.05,138.04,7.24427702]
[1750535430533,9.90397409,138.05,138.01,25.36042539]
[1750535433631,0.72,138.05,138.01,25.36042539]
[1750535433847,9.90397409,138.05,138.01,34.54439948]
[1750535435442,0.72,138.05,138.01,34.54439948]
[1750535435644,9.90397409,138.05,138.01,34.54439948]
[1750535436159,9.18397409,138.05,138.01,34.54439948]
[1750535436336,9.18397409,138.06,138.01,35.22439948]
[1750535438252,148.72,138.07,138.01,35.22439948]
[1750535438558,157.18397409,138.07,138.03,0.68]
[1750535439163,157.18397409,138.07,138.02,9.86397409]
[1750535439460,157.90397409,138.07,138.02,9.86397409]
[1750535439644,9.90397409,138.05,138.01,25.36042539]
[1750535439835,9.18397409,138.05,138.01,34.54439948]
[1750535440035,9.18397409,138.05,138.01,35.22439948]
[1750535442474,9.18397409,138.06,138.01,35.22439948]
[1750535442950,9.18397409,138.06,138.01,34.54439948]
[1750535443137,9.18397409,138.06,138.02,9.18397409]
[1750535443338,9.18397409,138.06,138.03,0.68]
[1750535444165,9.18397409,138.06,138.02,9.18397409]
[1750535444736,9.90397409,138.06,138.03,7.24480185]
[1750535445246,148.0,138.07,138.03,25.35680648]
[1750535445450,9.18397409,138.06,138.03,25.35680648]
[1750535446247,157.18397409,138.07,138.03,25.35680648]
[1750535446851,9.18397409,138.06,138.03,25.35680648]
[1750535448379,157.90397409,138.07,138.03,25.35680648]
[1750535448587,0.72,138.05,138.03,25.35680648]
[1750535448741,9.90397409,138.05,138.03,25.35680648]
[1750535448947,9.18397409,138.04,138.03,7.24480185]
[1750535449246,9.90397409,138.05,138.03,7.24480185]
[1750535449967,9.18397409,138.05,138.03,7.24480185]
[1750535450187,157.18397409,138.07,138.03,25.35680648]
[1750535450389,157.90397409,138.07,138.03,25.35680648]
[1750535451086,9.18397409,138.06,138.03,25.35680648]
[1750535452594,0.72,138.05,138.03,25.35680648]
[1750535453469,9.18397409,138.06,138.03,25.35680648]
[1750535453664,9.90397409,138.06,138.03,25.35680648]
[1750535454494,9.90397409,138.06,138.02,9.18397409]
[1750535454866,0.72,138.06,138.02,9.18397409]
[1750535455066,9.90397409,138.06,138.01,34.5444552]
[1750535455368,9.92397409,138.06,138.01,34.5444552]
[1750535455781,0.74,138.05,138.01,34.5444552]
[1750535458401,9.18397409,138.04,138.01,7.24585174]
[1750535458612,9.92397409,138.03,138.01,7.24585174]
[1750535458934,9.92397409,138.02,138.01,7.24585174]
[1750535459290,0.74,138.02,138.01,7.24585174]
[1750535459512,9.18397409,138.03,138.01,7.24585174]
[1750535459918,9.18397409,138.03,138.0,7.24637681]
[1750535460127,9.18397409,138.03,138.0,26.09231883]
[1750535460414,28.3973,138.06,137.96,7.24847781]
[1750535460415,0.74,137.99,137.96,7.24847781]
[1750535460616,9.18397409,137.98,137.96,7.24847781]
[1750535460993,9.18397409,137.97,137.96,7.24847781]
[1750535461188,0.74,137.96,137.94,7.24952878]
[1750535461462,9.92397409,137.96,137.94,7.24952878]
[1750535461795,9.92397409,137.96,137.93,7.25005437]
[1750535463231,9.18397409,137.97,137.93,25.3751903]
[1750535463634,9.92397409,137.95,137.93,7.25005437]
[1750535463925,0.74,137.93,137.89,7.25215751]
[1750535464131,9.18397409,137.92,137.89,7.25215751]
[1750535464707,9.18397409,137.91,137.89,7.25215751]
[1750535464899,9.18397409,137.92,137.89,25.3825513]
[1750535465422,9.92397409,137.93,137.89,25.3825513]
[1750535465796,28.3973,137.96,137.91,34.56284436]
[1750535466030,11.58127409,137.96,137.92,9.18397409]
[1750535466237,9.92397409,137.96,137.92,9.18397409]
[1750535466417,9.18397409,137.96,137.92,9.18397409]
[1750535467132,9.18397409,137.97,137.93,9.18397409]
[1750535467305,9.92397409,137.97,137.93,9.18397409]
[1750535467505,0.74,137.97,137.93,9.18397409]
[1750535467932,9.92397409,137.97,137.94,7.24952878]
[1750535470129,0.74,137.96,137.94,7.24952878]
[1750535472433,0.74,137.96,137.93,25.37502483]
[1750535472806,157.18397409,137.98,137.93,34.55899892]
[1750535473030,157.18397409,137.98,137.94,9.18397409]
[1750535473205,9.18397409,137.98,137.94,9.18397409]
[1750535474109,37.58127409,137.99,137.94,9.18397409]
[1750535474432,37.58127409,137.99,137.95,7.24900326]
[1750535474924,9.92397409,137.99,137.95,34.5554855]
[1750535475828,0.74,137.98,137.95,25.37151141]
[1750535476210,9.92397409,137.98,137.95,25.37151141]
[1750535477235,0.74,137.98,137.95,25.37151141]
[1750535477817,9.18397409,137.99,137.95,34.5554855]
[1750535478033,9.92397409,137.99,137.95,34.5554855]
[1750535478537,176.57362295,138.0,137.95,34.5554855]
[1750535478740,9.92397409,137.99,137.95,34.5554855]
[1750535480317,9.92397409,137.98,137.95,25.37151141]
[1750535481652,0.74,137.97,137.95,7.24900326]
[1750535482351,9.92397409,137.98,137.94,7.24952878]
[1750535482538,9.92397409,137.98,137.94,34.55732482]
[1750535482724,9.18397409,137.99,137.95,9.18397409]
[1750535483144,9.92397409,137.99,137.95,9.18397409]
[1750535483932,0.74,137.97,137.94,25.37335073]
[1750535485326,0.73,137.96,137.94,7.24952878]
[1750535485529,9.18397409,137.98,137.94,7.24952878]
[1750535485729,0.73,137.97,137.94,7.24952878]
[1750535486756,0.73,137.98,137.94,34.55732482]
[1750535486932,0.73,137.97,137.94,34.55732482]
[1750535487431,0.73,137.97,137.94,25.37335073]
[1750535488859,9.91397409,137.97,137.94,25.37335073]
[1750535489163,166.64964886,138.0,137.96,9.18397409]
[1750535489460,248.2,138.09,137.98,9.18397409]
[1750535489461,11.57127409,138.03,137.98,9.18397409]
[1750535489655,11.57127409,138.03,137.96,0.71]
[1750535489851,9.18397409,138.02,137.98,9.18397409]
[1750535490159,9.91397409,138.02,137.98,9.18397409]
[1750535490467,0.73,138.02,137.98,9.18397409]
[1750535491035,9.91397409,138.02,137.99,7.24690194]
[1750535491633,9.91397409,138.02,137.99,25.36415681]
[1750535492644,9.18397409,138.0,137.99,7.24690194]
[1750535492964,9.91397409,138.0,137.99,7.24690194]
[1750535493258,0.73,137.99,137.96,7.24847781]
[1750535493442,9.18397409,137.98,137.96,7.24847781]
[1750535493645,0.73,137.96,137.94,6.54]
[1750535493961,27.83362295,137.95,137.9,25.38062823]
[1750535494266,9.18397409,137.93,137.9,25.38062823]
[1750535494451,9.91397409,137.94,137.9,25.38062823]
[1750535494658,9.18397409,137.92,137.9,25.38062823]
[1750535495162,9.91397409,137.92,137.9,25.38062823]
[1750535495353,9.91397409,137.92,137.9,7.25163161]
[1750535495941,9.18397409,137.91,137.9,7.25163161]
[1750535496136,9.91397409,137.91,137.89,13.79193676]
[1750535498567,9.91397409,137.9,137.89,6.54]
[1750535498865,0.73,137.89,137.88,7.25265802]
[1750535499169,0.73,137.88,137.85,7.25426187]
[1750535499463,9.91397409,137.86,137.85,7.25426187]
[1750535499666,9.91397409,137.86,137.84,13.79461198]
[1750535499865,9.18397409,137.85,137.84,13.79461198]
[1750535500439,9.18397409,137.85,137.81,7.25636746]
[1750535500440,9.91397409,137.85,137.81,7.25636746]
[1750535500673,9.18397409,137.83,137.81,7.25636746]
[1750535501074,0.73,137.84,137.81,7.25636746]
[1750535501248,9.91397409,137.84,137.81,7.25636746]
[1750535501573,9.18397409,137.83,137.81,7.25636746]
[1750535501787,9.91397409,137.82,137.79,13.79708741]
[1750535501982,9.18397409,137.82,137.79,13.79708741]
[1750535503573,9.18397409,137.81,137.79,13.79708741]
[1750535504076,9.18397409,137.8,137.79,6.54]
[1750535504266,9.91397409,137.8,137.78,7.25790711]
[1750535504653,9.18397409,137.81,137.78,7.25790711]
[1750535505862,9.91397409,137.81,137.78,7.25790711]
[1750535506063,9.91397409,137.8,137.77,7.25847426]
[1750535507766,149.6581,137.83,137.77,35.29863402]
[1750535507962,9.18397409,137.81,137.77,34.58863402]
[1750535508448,9.91397409,137.82,137.77,34.58863402]
[1750535508670,0.73,137.82,137.77,34.58863402]
[1750535508977,9.18397409,137.82,137.78,9.18397409]
[1750535509877,148.0,137.83,137.78,9.89397409]
[1750535510055,27.83362295,137.85,137.81,9.18397409]
[1750535510553,27.83362295,137.85,137.82,7.25584095]
[1750535510747,28.56362295,137.85,137.82,7.25584095]
[1750535511052,28.56362295,137.85,137.81,7.25617673]
[1750535511053,9.18397409,137.83,137.81,7.25617673]
[1750535512054,9.18397409,137.84,137.81,7.25617673]
[1750535512261,9.18397409,137.83,137.81,7.25617673]
[1750535512565,9.18397409,137.83,137.8,7.25689404]
[1750535512756,9.91397409,137.84,137.8,7.25689404]
[1750535513552,9.91397409,137.81,137.8,7.25689404]
[1750535513751,18.64964886,137.8,137.77,7.25827765]
[1750535513955,9.18397409,137.79,137.77,7.25827765]
[1750535514693,9.18397409,137.81,137.77,9.18397409]
[1750535514851,9.93397409,137.8,137.76,25.40650406]
[1750535515176,9.93397409,137.8,137.76,7.25900116]
[1750535515361,9.18397409,137.79,137.76,7.25900116]
[1750535515893,9.18397409,137.77,137.74,7.26005517]
[1750535516047,9.93397409,137.76,137.74,7.26005517]
[1750535516886,9.93397409,137.76,137.73,7.26058229]
[1750535517283,1.6152,137.79,137.74,9.18397409]
[1750535517284,9.18397409,137.79,137.74,9.18397409]
[1750535517457,9.93397409,137.79,137.74,9.18397409]
[1750535517983,9.18397409,137.77,137.73,25.41203803]
[1750535518982,9.93397409,137.76,137.73,25.41203803]
[1750535519181,9.93397409,137.76,137.73,7.26058229]
[1750535519362,9.93397409,137.74,137.71,71.86204946]
[1750535519561,9.18397409,137.72,137.71,7.26115063]
[1750535520562,46.26484886,137.76,137.71,25.41524256]
[1750535520771,9.18397409,137.77,137.74,7.26005517]
[1750535520956,157.18397409,137.79,137.74,34.5941672]
[1750535521159,148.0,137.79,137.76,9.18397409]
[1750535521360,8.29136473,137.8,137.78,9.18397409]
[1750535521684,35.18397409,137.84,137.79,9.18397409]
[1750535522060,9.93397409,137.84,137.79,9.18397409]
[1750535522494,18.64964886,137.85,137.8,9.18397409]
[1750535522656,9.18397409,137.84,137.8,9.18397409]
[1750535522857,44.64964886,137.85,137.81,7.25636746]
[1750535523103,9.18397409,137.84,137.81,7.25636746]
[1750535523398,0.75,137.83,137.81,7.25636746]
[1750535524287,0.75,137.83,137.8,7.25689404]
[1750535524859,9.93397409,137.83,137.8,7.25689404]
[1750535525561,0.75,137.83,137.8,7.25689404]
[1750535525757,9.93397409,137.81,137.77,7.25847426]
[1750535525980,9.18397409,137.81,137.77,25.40465993]
[1750535526182,9.18397409,137.81,137.77,34.58863402]
[1750535526386,9.18397409,137.81,137.77,27.33015976]
[1750535527274,9.18397409,137.82,137.77,27.33015976]
[1750535528060,9.18397409,137.83,137.79,9.18397409]
[1750535528260,9.18397409,137.83,137.8,7.25689404]
[1750535529073,9.93397409,137.83,137.8,7.25689404]
[1750535529596,9.93397409,137.82,137.8,7.25689404]
[1750535530368,9.93397409,137.82,137.78,7.25794745]
[1750535530800,9.93397409,137.82,137.78,16.44192154]
[1750535531295,9.93397409,137.81,137.78,7.25794745]
[1750535531468,9.93397409,137.8,137.78,7.25794745]
[1750535531672,9.93397409,137.79,137.76,7.25900116]
[1750535531880,9.18397409,137.8,137.76,34.59047815]
[1750535533284,9.18397409,137.8,137.76,25.40650406]
[1750535533489,9.93397409,137.8,137.76,25.40650406]
[1750535534007,9.93397409,137.8,137.76,34.59047815]
[1750535534179,9.18397409,137.8,137.76,34.59047815]
[1750535534687,157.18397409,137.82,137.77,9.18397409]
[1750535535004,9.93397409,137.81,137.76,34.59047815]
[1750535535383,9.18397409,137.79,137.76,25.40650406]
[1750535535702,9.18397409,137.79,137.76,7.25900116]
[1750535535703,9.93397409,137.79,137.76,7.25900116]
[1750535536399,9.18397409,137.8,137.76,25.40650406]
[1750535537879,9.18397409,137.8,137.76,34.59047815]
[1750535539902,0.75,137.8,137.76,25.40650406]
[1750535540083,9.18397409,137.79,137.76,25.40650406]
[1750535540286,9.18397409,137.79,137.76,7.25900116]
[1750535540477,9.93397409,137.79,137.76,7.25900116]
[1750535540995,0.75,137.77,137.75,13.7993101]
[1750535541200,9.18397409,137.76,137.75,13.7993101]
[1750535541598,27.83362295,137.77,137.75,13.7993101]
[1750535541902,28.58362295,137.77,137.75,13.7993101]
[1750535542287,9.18397409,137.77,137.75,13.7993101]
[1750535542492,5.37554004,137.76,137.75,13.7993101]
[1750535542798,9.93397409,137.77,137.75,13.7993101]
[1750535543579,5.38053093,137.76,137.75,13.7993101]
[1750535543778,9.93397409,137.77,137.75,13.7993101]
[1750535544177,5.37973487,137.76,137.75,13.7993101]
[1750535544375,5.3823586,137.76,137.75,13.7993101]
[1750535544605,27.83362295,137.79,137.75,22.98328419]
[1750535544814,157.18397409,137.8,137.75,41.13210451]
[1750535545110,15.29715213,137.79,137.75,41.13210451]
[1750535545279,5.38317804,137.78,137.75,41.13210451]
[1750535545487,9.91397409,137.79,137.75,41.13210451]
[1750535545686,5.38529045,137.78,137.75,41.13210451]
[1750535545914,157.18397409,137.8,137.77,7.25847426]
[1750535546079,5.38505048,137.79,137.77,7.25847426]
[1750535546280,157.18397409,137.8,137.77,7.25847426]
[1750535546481,5.38658326,137.79,137.77,7.25847426]
[1750535546704,157.18397409,137.8,137.77,7.25847426]
[1750535547091,148.0,137.8,137.77,7.25847426]
[1750535547704,5.38650897,137.79,137.77,7.25847426]
[1750535548017,148.0,137.8,137.77,34.58863402]
[1750535548215,5.38649963,137.79,137.77,34.58863402]
[1750535548383,148.0,137.8,137.77,34.58863402]
[1750535549096,148.0,137.8,137.78,9.18397409]
[1750535549299,183.18397409,137.83,137.79,9.18397409]
[1750535549512,5.38726403,137.82,137.79,9.18397409]
[1750535549687,174.0,137.83,137.79,9.18397409]
[1750535549897,174.0,137.83,137.77,26.11465993]
[1750535549898,148.0,137.83,137.77,26.11465993]
[1750535550111,148.0,137.83,137.76,7.25900116]
[1750535550112,18.64964886,137.8,137.76,7.25900116]
[1750535550308,5.38685567,137.79,137.76,7.25900116]
[1750535550487,27.83362295,137.8,137.76,7.25900116]
[1750535550682,0.73,137.8,137.76,16.44297525]
[1750535550882,9.18397409,137.81,137.76,17.15297525]
[1750535551088,9.91397409,137.81,137.76,17.15297525]
[1750535551393,9.91397409,137.81,137.76,35.30047815]
[1750535551594,7.41397409,137.81,137.76,35.30047815]
[1750535552008,9.18397409,137.8,137.76,25.40650406]
[1750535552697,9.18397409,137.8,137.76,34.59047815]
[1750535553637,27.83362295,137.81,137.76,35.30047815]
[1750535553927,27.83362295,137.81,137.77,9.18397409]
[1750535554231,9.91397409,137.82,137.77,9.18397409]
[1750535554725,9.18397409,137.81,137.77,9.18397409]
[1750535555397,9.91397409,137.82,137.77,9.18397409]
[1750535555806,9.91397409,137.82,137.78,7.25794745]
[1750535556527,9.91397409,137.81,137.78,7.25794745]
[1750535556713,9.18397409,137.81,137.78,7.25794745]
[1750535556897,0.73,137.8,137.78,7.25794745]
[1750535558031,0.73,137.8,137.77,7.25847426]
[1750535558423,26.0,137.81,137.77,7.25847426]
[1750535558601,0.73,137.77,137.75,7.25952813]
[1750535558801,9.91397409,137.76,137.74,13.77985496]
[1750535559097,9.18397409,137.77,137.74,13.77985496]
[1750535559301,9.91397409,137.77,137.74,13.77985496]
[1750535559721,9.18397409,137.76,137.74,13.77985496]
[1750535561103,9.91397409,137.77,137.74,13.77985496]
[1750535562105,9.91397409,137.76,137.74,13.77985496]
[1750535562307,9.91397409,137.75,137.74,6.52]
[1750535562498,9.91397409,137.75,137.74,13.78005517]
[1750535562699,9.91397409,137.75,137.74,7.26005517]
[1750535563127,9.91397409,137.75,137.72,7.26110949]
[1750535563506,9.18397409,137.74,137.72,7.26110949]
[1750535563708,0.73,137.75,137.7,7.26216412]
[1750535563709,9.18397409,137.73,137.7,7.26216412]
[1750535563925,9.91397409,137.71,137.69,13.78266734]
[1750535564105,9.18397409,137.7,137.69,13.78266734]
[1750535564842,9.91397409,137.7,137.68,7.26305117]
[1750535565149,9.91397409,137.69,137.66,7.26427429]
[1750535565314,9.18397409,137.67,137.65,7.26461191]
[1750535565500,9.18397409,137.66,137.64,13.78511979]
[1750535565710,9.18397409,137.65,137.64,13.78511979]
[1750535566110,9.18397409,137.65,137.61,27.56425587]
[1750535566111,0.73,137.64,137.61,0.21428035]
[1750535566317,0.73,137.64,137.61,7.2666985]
[1750535566524,9.18397409,137.63,137.61,7.2666985]
[1750535566727,0.73,137.61,137.59,7.26782997]
[1750535566933,9.18397409,137.6,137.59,7.26782997]
[1750535567126,9.91397409,137.61,137.59,7.26782997]
[1750535567346,9.18397409,137.6,137.59,7.26782997]
[1750535568116,9.91397409,137.6,137.57,7.26902667]
[1750535568314,9.91397409,137.6,137.55,7.2700836]
[1750535568315,9.91397409,137.58,137.55,7.2700836]
[1750535568640,9.18397409,137.57,137.55,7.2700836]
[1750535568831,15.42383233,137.57,137.55,7.2700836]
[1750535569220,15.42383233,137.56,137.55,7.2700836]
[1750535569931,0.73,137.56,137.55,7.2700836]
[1750535570136,16.15383233,137.56,137.53,25.44774613]
[1750535570427,15.42383233,137.56,137.53,25.44774613]
[1750535570632,16.15383233,137.57,137.53,40.87157846]
[1750535570831,16.15383233,137.57,137.53,25.44774613]
[1750535571448,16.15383233,137.54,137.52,13.79150842]
[1750535571660,15.42383233,137.53,137.52,13.79150842]
[1750535572143,15.42383233,137.53,137.52,6.52]
[1750535572355,15.42383233,137.53,137.52,13.79166957]
[1750535572813,15.42383233,137.53,137.52,6.52]
[1750535573114,15.42383233,137.53,137.51,7.27206224]
[1750535573711,15.42383233,137.52,137.5,11.52709536]
[1750535574233,15.42383233,137.52,137.5,4.25450678]
[1750535574429,15.42383233,137.52,137.5,11.5272031]
[1750535574934,0.74,137.57,137.51,15.42383233]
[1750535575245,18.64964886,137.57,137.5,29.70902128]
[1750535575451,15.42383233,137.56,137.51,15.42383233]
[1750535575910,15.42383233,137.55,137.5,29.70902128]
[1750535576112,18.64964886,137.57,137.5,45.13285361]
[1750535576307,15.42383233,137.55,137.51,15.42383233]
[1750535577041,15.42383233,137.55,137.52,7.27166957]
[1750535577908,54.88162267,137.6,137.52,7.27166957]
[1750535577909,34.81348119,137.56,137.52,7.27166957]
[1750535578113,34.81348119,137.56,137.52,22.6955019]
[1750535578624,19.38964886,137.56,137.52,7.27166957]
[1750535578943,34.81348119,137.56,137.52,7.27166957]
[1750535579117,19.38964886,137.56,137.52,7.27166957]
[1750535579313,18.64964886,137.56,137.52,15.42383233]
[1750535579530,34.81348119,137.56,137.51,40.87652667]
[1750535579929,34.81348119,137.56,137.51,25.45269434]
[1750535580135,16.16383233,137.55,137.51,25.45269434]
[1750535580320,0.74,137.54,137.51,25.45269434]
[1750535580532,16.16383233,137.55,137.51,25.45269434]
[1750535580733,16.16383233,137.55,137.51,40.87652667]
[1750535581247,148.74,137.58,137.52,15.42383233]
[1750535581413,148.0,137.58,137.57,15.42383233]
[1750535581613,8.50886218,137.62,137.57,15.42383233]
[1750535581817,8.50886218,137.62,137.58,15.42383233]
[1750535582132,23.19269451,137.62,137.58,15.42383233]
[1750535582317,23.93269451,137.62,137.58,15.42383233]
[1750535583342,34.07348119,137.61,137.58,7.26811112]
[1750535583642,16.16383233,137.6,137.58,7.26811112]
[1750535583855,16.16383233,137.6,137.55,6.52]
[1750535583856,34.81348119,137.59,137.55,6.52]
[1750535584021,16.16383233,137.58,137.55,6.52]
[1750535584847,16.16383233,137.58,137.55,13.79000938]
[1750535585545,34.07348119,137.59,137.55,13.79000938]
[1750535585737,34.07348119,137.59,137.55,29.21384171]
[1750535586128,15.42383233,137.56,137.5,17.19720678]
[1750535586349,15.42383233,137.54,137.5,32.62103911]
[1750535586523,15.42383233,137.54,137.5,26.19833911]
[1750535586724,15.42383233,137.55,137.5,26.19833911]
[1750535587152,15.42383233,137.54,137.51,7.27219838]
[1750535588047,15.42383233,137.55,137.51,7.27219838]
[1750535588947,15.42383233,137.54,137.51,7.27219838]
[1750535590462,0.74,137.55,137.51,7.27219838]
[1750535590756,15.42383233,137.54,137.51,7.27219838]
[1750535591534,15.42383233,137.53,137.51,7.27219838]
[1750535591949,15.42383233,137.54,137.51,7.27219838]
[1750535592466,163.42383233,137.56,137.52,15.42383233]
[1750535592638,0.74,137.58,137.53,15.42383233]
[1750535592950,15.42383233,137.58,137.54,15.42383233]
[1750535593161,163.42383233,137.59,137.55,15.42383233]
[1750535593474,163.42383233,137.59,137.56,7.2695551]
[1750535593763,164.16383233,137.59,137.56,7.2695551]
[1750535594066,148.74,137.59,137.56,7.2695551]
[1750535594233,148.0,137.59,137.56,7.2695551]
[1750535594571,163.42383233,137.59,137.56,7.2695551]
[1750535595140,15.42383233,137.59,137.56,7.2695551]
[1750535595847,15.42383233,137.57,137.55,7.2700836]
[1750535596048,42.16383233,137.58,137.55,7.2700836]
[1750535599152,25.91661043,137.61,137.55,7.2700836]
[1750535599153,15.42383233,137.59,137.55,7.2700836]
[1750535599358,42.16383233,137.58,137.55,7.2700836]
[1750535599670,155.76886218,137.62,137.57,15.42383233]
[1750535599839,155.76886218,137.62,137.59,15.42383233]
[1750535600044,156.50886218,137.62,137.58,15.42383233]
[1750535600243,0.74,137.6,137.56,21.98383233]
[1750535600458,16.16383233,137.6,137.55,40.86912494]
[1750535600949,16.16383233,137.6,137.56,15.42383233]
[1750535601767,0.74,137.59,137.57,7.26902667]
[1750535602263,26.0,137.58,137.57,7.26902667]
[1750535602466,26.74,137.58,137.57,7.26902667]
[1750535602642,26.0,137.58,137.57,7.26902667]
[1750535602969,15.42383233,137.59,137.57,7.26902667]
[1750535603140,15.42383233,137.6,137.57,7.26902667]
[1750535603565,148.0,137.61,137.57,22.692859]
[1750535603865,163.42383233,137.61,137.57,15.42383233]
[1750535604671,164.16383233,137.61,137.57,15.42383233]
[1750535605563,164.16383233,137.61,137.55,25.44529261]
[1750535605564,164.16383233,137.61,137.56,15.42383233]
[1750535605769,15.42383233,137.6,137.55,25.44529261]
[1750535605946,16.12383233,137.59,137.55,40.86912494]
[1750535606345,16.12383233,137.59,137.55,25.44529261]
[1750535606566,15.42383233,137.6,137.55,40.86912494]
[1750535606766,16.12383233,137.6,137.56,15.42383233]
[1750535606964,16.12383233,137.6,137.55,25.44529261]
[1750535607175,16.12383233,137.6,137.56,15.42383233]
[1750535607357,5.34997334,137.59,137.56,15.42383233]
[1750535607557,16.12383233,137.6,137.56,15.42383233]
[1750535607769,5.35020581,137.59,137.56,15.42383233]
[1750535607944,16.12383233,137.6,137.55,40.86912494]
[1750535608150,166.64964886,137.61,137.55,40.86912494]
[1750535608151,21.47368101,137.59,137.55,40.86912494]
[1750535608468,5.34984868,137.58,137.55,40.86912494]
[1750535608660,16.12383233,137.6,137.55,40.86912494]
[1750535608847,5.35844663,137.59,137.55,40.86912494]
[1750535609049,16.12383233,137.6,137.55,40.86912494]
[1750535609250,5.35849644,137.59,137.55,40.86912494]
[1750535609477,5.35849644,137.58,137.55,40.86912494]
[1750535609647,16.12383233,137.6,137.55,40.86912494]
[1750535609947,5.36534946,137.59,137.55,40.86912494]
[1750535610147,5.36534946,137.58,137.55,40.86912494]
[1750535610352,5.36534946,137.57,137.55,40.86912494]
[1750535610651,16.12383233,137.6,137.55,40.86912494]
[1750535610849,5.37500367,137.59,137.56,0.68]
[1750535611047,7.76886218,137.62,137.58,15.42383233]
[1750535611242,5.37574994,137.61,137.57,2.3314]
[1750535611548,5.37802271,137.6,137.59,15.42383233]
[1750535611976,16.12383233,137.63,137.6,7.26744186]
[1750535612170,5.3783454,137.62,137.6,7.26744186]
[1750535612470,5.3783454,137.61,137.6,7.26744186]
[1750535612683,148.0,137.64,137.6,40.85987884]
[1750535612968,5.37531678,137.63,137.6,25.43604651]
[1750535613173,5.37531678,137.62,137.61,15.42383233]
[1750535613376,148.0,137.64,137.61,15.42383233]
[1750535613550,5.37391954,137.63,137.61,15.42383233]
[1750535613751,148.0,137.64,137.61,15.42383233]
[1750535613977,21.4993419,137.63,137.58,18.17109781]
[1750535614147,21.4993419,137.62,137.58,40.86342846]
[1750535614481,0.7,137.62,137.59,15.42383233]
[1750535615173,5.3730076,137.61,137.58,40.86342846]
[1750535615346,15.42383233,137.62,137.58,25.43959613]
[1750535615547,5.37253868,137.61,137.58,40.86342846]
[1750535615750,16.12383233,137.61,137.58,25.43959613]
[1750535616153,16.12383233,137.61,137.58,18.17109781]
[1750535616351,0.7,137.6,137.58,18.17109781]
[1750535616551,16.12383233,137.6,137.57,7.26902667]
[1750535616954,5.37182937,137.59,137.57,7.26902667]
[1750535617148,16.12383233,137.6,137.57,7.26902667]
[1750535617570,0.7,137.6,137.57,25.44159336]
[1750535617779,179.450715,137.64,137.57,25.44159336]
[1750535617780,15.42383233,137.62,137.58,15.42383233]
[1750535617954,198.69844886,137.64,137.57,25.44159336]
[1750535617955,16.12383233,137.6,137.57,25.44159336]
[1750535618278,16.12383233,137.6,137.57,18.17256669]
[1750535619151,16.12383233,137.6,137.56,7.2695551]
[1750535619388,0.7,137.59,137.56,7.2695551]
[1750535619561,15.42383233,137.6,137.56,25.44344285]
[1750535619769,16.12383233,137.6,137.56,25.44344285]
[1750535622910,9.95115641,137.6,137.56,25.44344285]
[1750535628395,0.7,137.6,137.56,18.17388775]
[1750535628697,148.0,137.61,137.57,9.93115641]
[1750535629311,157.25115641,137.61,137.57,9.25115641]